[Event "Czech Championship 2022"]
[Site "Usti nad Labem"]
[Date "2022.05.20"]
[Round "7.21"]
[White "Horak, Jiri"]
[Black "Ret, Adam Josef"]
[Result "1-0"]
[ECO "D56"]
[WhiteElo "2161"]
[BlackElo "2093"]
[Annotator "TA"]
[PlyCount "79"]
[EventDate "2022.05.12"]
[EventType "swiss"]
[EventCountry "CZE"]
[SourceTitle "playchess.com"]
[Source "ChessBase"]
[SourceQuality "1"]
[TimeControl "40/5400+30:1800+30"]

{[%evp 19,79,0,-1,-11,-8,-18,-28,-20,-19,-53,10,-64,-33,-41,33,28,25,32,38,38,48,47,33,42,45,59,106,106,42,93,139,139,143,128,223,213,217,206,190,216,250,175,201,175,177,170,936,847,1112,1102,1073,1014,1320,972,1442,1426,2331,2314,12057,5932,1566,1880]} 1. d4 {[%emt 0:00:04]} d5 {[%emt 0:00:06]} 2. c4 {[%emt 0:00:21]} e6 {[%emt 0:00:14]} 3. Nc3 {[%emt 0:00:40]} Nf6 {[%emt 0:00:07]} 4. Bg5 {[%emt 0:00:37]} Be7 {[%emt 0:02:27]} 5. e3 {[%emt 0:00:16]} O-O {[%emt 0:00:51]} 6. Nf3 {[%emt 0:00:17]} h6 {[%emt 0:01:19]} 7. Bh4 {[%emt 0:00:08]} Ne4 {[%emt 0:01:03]} 8. Bxe7 {[%emt 0:00:42]} Qxe7 {[%emt 0:00:09]} 9. Nxe4 {[%emt 0:00:39]} dxe4 {[%emt 0:00:12]} 10. Nd2 {[%emt 0:00:45]} f5 {[%emt 0:01:06]} 11. Qc2 {[%emt 0:02:08] D56: Queen's Gambit Declined: Lasker Defence.} Nd7 {[%emt 0:10:56]} 12. O-O-O {[%emt 0:01:29]} c5 {[%emt 0:02:52] [#]} 13. Nb3 $146 {[%emt 0:03:56] Black has an edge.} ({Predecessor:} 13. Be2 Rd8 14. Nb3 cxd4 15. Nxd4 Nc5 16. Kb1 Bd7 17. Nb3 Ba4 18. Qc3 Rxd1+ 19. Rxd1 {1-0 (30) Zhmailo,Y-Senchukova,G Gorodets 2007}) 13... b6 {[%emt 0:00:57]} 14. g3 {[%emt 0:07:43]} Bb7 {[%emt 0:01:08]} (14... a5 $15) 15. Be2 {[%emt 0:01:25]} (15. dxc5 $11 Nxc5 16. Nxc5 Qxc5 17. Be2) 15... Rac8 {[%emt 0:00:53]} 16. Kb1 {[%emt 0:00:55]} Ba6 {[%emt 0:08:00]} (16... a5 $15) 17. dxc5 $1 $14 {[%emt 0:03:13]} Nxc5 {[%emt 0:02:32]} 18. Nxc5 {[%emt 0:00:49]} Qxc5 {[%emt 0:01:06]} 19. Rd7 {[%emt 0:02:21]} Bxc4 {[%emt 0:05:41]} 20. Bxc4 {[%emt 0:04:34]} Qxc4 {[%emt 0:01:05]} 21. Qxc4 {[%emt 0:00:06]} Rxc4 {[%emt 0:00:03]} 22. Rxa7 {[%emt 0:00:14][%mdl 4096] Endgame KRR-KRR} Rd8 {[%emt 0:36:15]} (22... Rfc8 $14) 23. Rc1 $16 {[%emt 0:02:11]} Rxc1+ {[%emt 0:01:29]} 24. Kxc1 {[%emt 0:00:07] KR-KR} Kh7 {[%emt 0:00:09] White leaves nothing to chance now.} ({Black should play} 24... Rc8+ 25. Kd2 b5) 25. Rc7 {[%emt 0:02:24]} Rd6 {[%emt 0:01:00] Against Rc6} 26. b4 {[%emt 0:00:48]} b5 {[%emt 0:01:18]} (26... Kg6 $16 {might work better.}) 27. Rc5 $18 {[%emt 0:00:21]} Rb6 {[%emt 0:00:24]} 28. Kc2 {[%emt 0:01:01]} Kg6 {[%emt 0:00:11]} 29. Kb3 {[%emt 0:01:14]} Kg5 {[%emt 0:01:06]} 30. h3 {[%emt 1:04:02] Strongly threatening a4.} h5 {[#]} 31. a4 $1 {[%emt 0:00:00]} bxa4+ {[%emt 0:02:14]} 32. Kxa4 {[%emt 0:00:00] aiming for Ka5.} Kf6 $2 {[%emt 0:05:28]} (32... Rb8 33. b5 h4) 33. b5 {[%emt 0:00:00][%cal Bb4b5,Bb5b6][%mdl 32] White is clearly winning.} Ke7 {[%emt 0:01:37]} 34. Ka5 {[%emt 0:00:00]} Rb8 {[%emt 0:00:20]} 35. b6 {[%emt 0:00:00]} Kd6 {[%emt 0:00:40]} 36. Kb5 {[%emt 0:00:00]} g5 {[%emt 0:00:41]} 37. Rc2 {[%emt 0:00:00]} Ke5 {[%emt 0:09:04]} 38. Ka6 {[%emt 0:00:00] [#] Hoping for Ka7.} Ra8+ {[%emt 0:00:27]} 39. Kb7 {[%emt 0:00:00]} Ra1 {[%emt 0:00:06]} 40. Kc7 {[%emt 0:00:00] Weighted Error Value: White=0.13 (very precise) /Black=0.31} 1-0

[Event "Czech Championship 2022"]
[Site "Usti nad Labem"]
[Date "2022.05.20"]
[Round "7.22"]
[White "Ocelak, Jakub"]
[Black "Sura, Jaroslav"]
[Result "1-0"]
[ECO "E93"]
[WhiteElo "2060"]
[BlackElo "2010"]
[Annotator "TA"]
[PlyCount "69"]
[EventDate "2022.05.12"]
[EventType "swiss"]
[EventCountry "CZE"]
[SourceTitle "playchess.com"]
[Source "ChessBase"]
[SourceQuality "1"]
[TimeControl "40/5400+30:1800+30"]

{[%evp 14,69,42,32,79,83,108,81,126,133,146,100,106,97,102,54,75,32,30,34,108,105,108,56,181,184,139,129,122,123,192,146,129,117,135,106,133,137,215,189,252,205,277,264,600,576,948,948,929,903,1368,1354,1308,1302,29988,29989,29989,29990]} 1. d4 {[%emt 0:00:05]} Nf6 {[%emt 0:00:24]} 2. Nf3 {[%emt 0:00:39]} g6 {[%emt 0:00:06]} 3. c4 {[%emt 0:00:24]} Bg7 {[%emt 0:00:04]} 4. Nc3 {[%emt 0:00:04]} d6 {[%emt 0:00:20]} 5. e4 {[%emt 0:00:06]} O-O {[%emt 0:00:03]} 6. Be2 {[%emt 0:00:05]} Nbd7 {[%emt 0:01:01]} 7. Be3 {[%emt 0:06:08]} e5 {[%emt 0:02:19]} 8. d5 {[%emt 0:00:16]} Ne8 {[%emt 0:00:50] E93: King's Indian: Classical: Petrosian System with 7...Nbd7.} (8... Ng4 $14) 9. g4 $16 {[%emt 0:05:22]} h6 {[%emt 0:08:37] [#]} 10. Rg1 $146 {[%emt 0:11:21]} ({Predecessor:} 10. Qd2 Kh7 11. h4 a6 12. O-O-O Nc5 13. h5 g5 14. Bxg5 f6 15. Be3 Bxg4 16. Nh4 Bxe2 17. Qxe2 {1-0 (25) Berenstein,M-Schwerdtfeger,W Kiel 2002}) 10... Kh7 {[%emt 0:04:15] White is better.} 11. Qc2 {[%emt 0:02:15]} c5 {[%emt 0:05:07]} 12. Rg3 {[%emt 0:05:48]} (12. h4 $142) 12... Rh8 {[%emt 0:01:43]} 13. O-O-O {[%emt 0:05:12]} a6 {[%emt 0:01:54]} 14. Rdg1 {[%emt 0:06:30] 0x0.000a5a11032bdp-1022s more active pieces. The black rooks are badly placed.} (14. a4 $16) 14... Nc7 $14 {[%emt 0:05:10][%cal Ob7b5]} 15. Qd2 {[%emt 0:05:21]} b5 $1 {[%emt 0:01:20]} 16. Rh3 {[%emt 0:03:52][%cal Re3h6]} bxc4 {[%emt 0:05:18]} (16... Kg8 $14) 17. Bxh6 $16 {[%emt 0:08:42]} Kg8 {[%emt 0:00:03] [#]} 18. Rgg3 {[%emt 0:00:55]} (18. Bxc4 Nf6 19. Qg5 Bxh6 20. Rxh6 Rxh6 21. Qxh6 Nxg4 $11) (18. Bg5 $1 $16 f6 19. Rxh8+ Kxh8 20. Bh6) 18... Nf6 {[%emt 0:16:08]} ({Black should play} 18... Bf6 $14) 19. Bxg7 $18 {[%emt 0:08:10]} (19. Bxc4 Bxg4 20. Bxg7 (20. Rh4 $2 Bxf3 21. Bg5 Rxh4 $19) 20... Kxg7 21. Rxh8 Qxh8 $15) 19... Kxg7 {[%emt 0:00:00]} 20. Qg5 {[%emt 0:01:32][%cal Of3e5]} ({Inferior is} 20. Bxc4 Bxg4 21. Rxh8 Qxh8 $15) 20... Nb5 {[%emt 0:13:55]} 21. Nd2 $40 {[%emt 0:07:12][%mdl 128] White has strong attack.} (21. Bxc4 $2 Nxc3 22. bxc3 Nxe4 23. Qxd8 Rxd8 $19) 21... Nd4 {[%emt 0:01:52]} (21... Bd7 $16) 22. Rxh8 {[%emt 0:08:28]} ({And not} 22. Bxc4 Nxg4 23. Qxd8 Rxd8 $17) (22. Bd1 $18) 22... Qxh8 $16 {[%emt 0:00:20]} 23. h3 {[%emt 0:01:05][%cal Bh2h3,Bh3h4,Bh4h5,Bh5g6][%mdl 32]} Bd7 {[%emt 0:06:53]} 24. Qe3 {[%emt 0:01:02]} ({Resist} 24. Bxc4 $6 Qe8 $14) 24... Bb5 {[%emt 0:08:08]} 25. Bd1 {[%emt 0:00:13]} a5 {[%emt 0:01:38]} (25... Nd7 $16) 26. h4 {[%emt 0:01:26]} a4 {[%emt 0:00:54]} (26... Ba6 $142) 27. a3 {[%emt 0:02:59]} Nd7 {[%emt 0:02:22]} (27... Qxh4 $2 28. Rh3 Nxg4 29. Rxh4 $18) 28. h5 {[%emt 0:01:50] Black must now prevent hxg6.} f6 $2 {[%emt 0:06:57]} (28... Kg8 29. Nxb5 Nxb5 30. Nxc4 Qf6) 29. hxg6 $18 {[%emt 0:00:43]} Qe8 {[%emt 0:02:49]} 30. Nxb5 {[%emt 0:03:59]} Nxb5 {[%emt 0:00:08]} 31. g5 {[%emt 0:00:03]} Nd4 {[%emt 0:01:10]} 32. gxf6+ {[%emt 0:00:30]} Nxf6 {[%emt 0:00:26]} 33. Rh3 {[%emt 0:00:41] [#] Threatening mate with Qh6+.} Kf8 {[%emt 0:01:55]} 34. Qh6+ {[%emt 0:00:51]} Ke7 {[%emt 0:00:27]} 35. Qg7+ {[%emt 0:00:05] Weighted Error Value: White=0.17 (very precise) /Black=0.80} 1-0

[Event "Czech Championship 2022"]
[Site "Usti nad Labem"]
[Date "2022.05.20"]
[Round "7.23"]
[White "Horak, Martin"]
[Black "Paulus, Vaclav"]
[Result "0-1"]
[ECO "B23"]
[WhiteElo "2343"]
[BlackElo "2093"]
[Annotator "TA"]
[PlyCount "56"]
[EventDate "2022.05.12"]
[EventType "swiss"]
[EventCountry "CZE"]
[SourceTitle "playchess.com"]
[Source "ChessBase"]
[SourceQuality "1"]
[TimeControl "40/5400+30:1800+30"]

{[%evp 9,56,10,21,0,13,0,0,-36,-31,-55,-28,-51,-50,-69,-18,7,6,-22,-3,-14,-10,-160,-160,-127,-75,-181,-179,-236,-147,-171,-143,-549,-550,-552,-554,-546,-515,-634,-615,-719,-675,-1389,-1178,-1611,-1633,-29997,-29995,-29998,-29996]} 1. e4 {[%emt 0:26:31]} c5 {[%emt 0:00:06]} 2. Nc3 {[%emt 0:00:07]} Nc6 {[%emt 0:00:07]} 3. Bb5 {[%emt 0:00:06]} Nd4 {[%emt 0:00:03]} 4. Nf3 {[%emt 0:00:04]} a6 {[%emt 0:00:06]} 5. Bd3 {[%emt 0:00:17]} Nc6 {[%emt 0:00:04]} 6. a3 {[%emt 0:00:34] B23: Closed Sicilian: Lines without g3.} e6 {[%emt 0:00:52]} 7. O-O {[%emt 0:00:47]} d6 {[%emt 0:00:04]} 8. Re1 {[%emt 0:01:37][%cal Ob2b4] The position is equal.} g5 {[%emt 0:00:36] [#]} 9. h3 $146 {[%emt 0:02:57]} ({Predecessor:} 9. Rf1 Bg7 10. Rb1 h6 11. b4 Nge7 12. bxc5 dxc5 13. Na4 c4 14. Nb6 cxd3 15. Nxa8 {0-1 (58) Mamedov,R (2654)-Ivanchuk,V (2678) Europe Echecs INT 2020}) 9... Bg7 {[%emt 0:00:40]} 10. Rb1 {[%emt 0:01:31]} h5 $1 {[%emt 0:01:10]} 11. Nh2 {[%emt 0:17:14] Against g4} Nge7 {[%emt 0:03:12]} (11... g4 $15) 12. Be2 $11 {[%emt 0:14:31]} g4 {[%emt 0:00:59]} 13. hxg4 {[%emt 0:03:29]} hxg4 {[%emt 0:01:04]} 14. Bxg4 {[%emt 0:00:39]} Ng6 {[%emt 0:00:25] White must now prevent ...Qh4.} 15. g3 {[%emt 0:01:54] [#] Inhibits Qh4.} (15. d3 $11) 15... Bd4 $1 $17 {[%emt 0:07:05][%mdl 1024] Threatens to win with ...Nce5. Black has strong compensation. Black is more active.} 16. d3 {[%emt 0:10:10]} Nge5 {[%emt 0:02:13]} ({But not} 16... Qf6 $6 17. Qf3 $11) 17. Qe2 {[%emt 0:08:07]} (17. Bh5 $17 {was necessary.}) 17... Qf6 $19 {[%emt 0:01:10]} 18. Be3 {[%emt 0:00:43]} (18. Kg2 {is a better defense.}) 18... Bd7 $40 {[%emt 0:01:43][%mdl 128] Hoping for ...0-0-0. White is in trouble.} 19. Kg2 {[%emt 0:05:24]} O-O-O {[%emt 0:01:23]} 20. f4 $2 {[%emt 0:00:53][%mdl 8192] This costs White the game.} (20. Rh1 $17 {nothing else works.}) 20... Bxe3 {[%emt 0:01:06]} 21. fxe5 {[%emt 0:00:28] [#]} Nxe5 {[%emt 0:00:06]} 22. Rh1 {[%emt 0:01:07]} Bd4 {[%emt 0:04:40] Strongly threatening ...Rdg8.} 23. Rbf1 {[%emt 0:00:39]} Qg7 {[%emt 0:00:51]} 24. Rf4 {[%emt 0:00:58]} Rdg8 {[%emt 0:01:34][%cal Of7f5] And now ...f5! would win.} 25. Rhf1 {[%emt 0:01:07]} f5 {[%emt 0:00:49]} 26. exf5 {[%emt 0:00:29]} exf5 {[%emt 0:00:46] ...Rxh2+ is the strong threat.} 27. Bxf5 {[%emt 0:00:31]} Qxg3+ {[%emt 0:00:05]} 28. Kh1 {[%emt 0:00:06] [#]} Qxf4 $3 {[%emt 0:00:15][%mdl 512] Weighted Error Value: White=1.12/Black=0.19 (very precise)} 0-1

[Event "Czech Championship 2022"]
[Site "Usti nad Labem"]
[Date "2022.05.20"]
[Round "7.24"]
[White "Kozak, Milos"]
[Black "Jirasko, Miroslav"]
[Result "1-0"]
[ECO "E65"]
[WhiteElo "2114"]
[BlackElo "2091"]
[Annotator "TA"]
[PlyCount "95"]
[EventDate "2022.05.12"]
[EventType "swiss"]
[EventCountry "CZE"]
[SourceTitle "playchess.com"]
[Source "ChessBase"]
[SourceQuality "1"]
[TimeControl "40/5400+30:1800+30"]

{[%evp 17,94,26,18,29,5,0,8,-15,0,-33,-6,0,70,90,87,78,92,0,38,-31,-29,-35,-27,-27,-25,-29,-25,-25,-12,-26,-23,-28,-19,-29,-10,-10,0,-23,-2,-8,36,36,64,60,60,0,119,-58,-65,-72,64,64,620,614,614,610,576,562,745,730,4921,4116,4133,1663,1974,1860,992,701,874,690,657,643,814,493,807,772,1144,1139,29999]} 1. d4 {[%emt 0:03:02]} Nf6 {[%emt 0:00:12]} 2. c4 {[%emt 0:00:23]} g6 {[%emt 0:00:08]} 3. g3 {[%emt 0:00:21]} Bg7 {[%emt 0:00:05]} 4. Bg2 {[%emt 0:00:05]} O-O {[%emt 0:00:05]} 5. Nc3 {[%emt 0:00:02]} d6 {[%emt 0:00:08]} 6. Nf3 {[%emt 0:00:10]} c5 {[%emt 0:00:42]} 7. dxc5 {[%emt 0:02:24]} dxc5 {[%emt 0:00:05]} 8. O-O {[%emt 0:00:09]} Nc6 {[%emt 0:00:09]} 9. Bf4 {[%emt 0:03:52]} Nh5 {[%emt 0:01:11]} 10. Bd2 {[%emt 0:06:58] E65: King's Indian: Fianchetto: 6...c5 7 0-0 without d5 by White.} Be6 {[%emt 0:00:38]} 11. b3 {[%emt 0:02:43]} Qc8 {[%emt 0:02:32] [#]} 12. Re1 $146 {[%emt 0:10:46] The position is equal.} ({Predecessor:} 12. Rc1 Bh3 13. Qc2 Nd4 14. Qb1 Rd8 15. Rcd1 Nxf3+ 16. exf3 Bxg2 17. Kxg2 Rxd2 18. Rxd2 Bxc3 {0-1 (35) Gonzalez Jimenez,G (1615)-Villacorta Nicolas,D (2162) Madrid 2018}) 12... Rd8 {[%emt 0:18:59] [#] White must now prevent ...Bxc3.} 13. Rc1 {[%emt 0:01:51][%cal Oc3d5]} h6 {[%emt 0:03:39]} 14. Qc2 {[%emt 0:10:57][%cal Oc3d5]} Nd4 {[%emt 0:09:41]} ({Black should try} 14... Bh3 $11) 15. Nxd4 $14 {[%emt 0:54:17]} cxd4 {[%emt 0:04:42]} 16. Nd5 {[%emt 0:00:00]} Qd7 {[%emt 0:02:08]} 17. Be4 {[%emt 0:00:00] White is more active.} (17. Ba5 $16) 17... Kh7 {[%emt 0:11:21]} 18. Nf4 {[%emt 0:00:00]} (18. Ba5 $14) 18... Nxf4 $15 {[%emt 0:01:53]} 19. gxf4 {[%emt 0:00:00]} Bf5 {[%emt 0:11:45]} 20. Bxf5 {[%emt 0:00:00]} gxf5 {[%emt 0:00:27]} 21. Qd3 {[%emt 0:00:00]} Bf6 {[%emt 0:00:35]} 22. Kh1 {[%emt 0:00:00]} e6 {[%emt 0:03:33]} 23. Rg1 {[%emt 0:00:00]} Qc6+ {[%emt 0:00:33]} 24. f3 {[%emt 0:00:00]} Rg8 {[%emt 0:01:43]} 25. Rg3 {[%emt 0:00:00]} a6 {[%emt 0:02:55]} 26. a4 {[%emt 0:00:00]} Rgc8 {[%emt 0:01:31]} 27. Rgg1 {[%emt 0:00:00]} Rab8 {[%emt 0:02:28]} 28. a5 {[%emt 0:00:00]} b6 {[%emt 0:02:38]} 29. axb6 {[%emt 0:00:00]} Rxb6 {[%emt 0:00:08]} 30. b4 {[%emt 0:00:00]} Rb7 {[%emt 0:00:57]} 31. b5 {[%emt 0:00:00]} ({Better is} 31. Rgd1 $14) 31... Qb6 {[%emt 0:06:44] [#]} (31... Qe8 $11) 32. Rb1 $2 {[%emt 0:00:00]} (32. e4 $1 $16 {[%cal Re4f5]}) 32... axb5 {[%emt 0:01:20]} 33. Rxb5 {[%emt 0:00:00][%cal Bb1b5,Bb5f5,Bf5f6][%mdl 32]} Qa6 {[%emt 0:00:23]} (33... Qc6 $17) 34. Rxf5 $1 $40 {[%emt 0:00:00][%mdl 128] White has some attack.} Qxc4 $2 {[%emt 0:03:27][%mdl 8192] Black cannot hold the game after this.} 35. Qe4 $18 {[%emt 0:06:44]} Qc6 {[%emt 0:01:21]} 36. Rxf6+ {[%emt 0:00:15]} Qxe4 {[%emt 0:00:05]} 37. fxe4 {[%emt 0:00:07] f5 would kill now.} Rc2 {[%emt 0:00:03]} 38. Bc1 {[%emt 0:02:21]} Rbc7 {[%emt 0:01:49]} 39. Ba3 {[%emt 0:00:29] Intending Bf8 and mate.} R2c3 {[%emt 0:00:54]} 40. Bd6 {[%emt 0:01:32]} Rd7 {[%emt 0:01:13]} 41. Bf8 {[%emt 0:04:47][%csl Gf8][%cal Rf6h6]} Rh3 {[%emt 0:00:23]} 42. Rg7+ {[%emt 0:01:06]} Kh8 {[%emt 0:00:03]} 43. Rg3 {[%emt 0:01:19]} Rxg3 {[%emt 0:00:33]} 44. hxg3 {[%emt 0:00:41]} Rc7 {[%emt 0:00:47]} 45. Rxh6+ {[%emt 0:02:48]} Kg8 {[%emt 0:00:04]} 46. Bd6 {[%emt 0:00:48]} Rc3 {[%emt 0:00:30]} 47. Be5 {[%emt 0:05:37][%csl Ge5][%cal Rh6h8]} Rxg3 {[%emt 0:00:05]} 48. Rh8# {[%emt 0:17:56] Weighted Error Value: White=0.25 (precise) /Black=0.50} 1-0

[Event "Czech Championship 2022"]
[Site "Usti nad Labem"]
[Date "2022.05.21"]
[Round "8.1"]
[White "Babula, Vlastimil"]
[Black "Zwardon, Vojtech"]
[Result "1-0"]
[ECO "D38"]
[WhiteElo "2576"]
[BlackElo "2482"]
[Annotator "TA"]
[PlyCount "63"]
[EventDate "2022.05.12"]
[EventType "swiss"]
[EventCountry "CZE"]
[SourceTitle "playchess.com"]
[Source "ChessBase"]
[SourceQuality "1"]
[TimeControl "40/5400+30:1800+30"]

{[%evp 9,63,16,46,18,9,8,10,10,35,23,33,38,31,34,39,32,43,23,50,35,41,40,43,22,12,5,12,8,24,26,60,56,44,39,43,36,55,6,101,35,50,45,162,143,151,141,177,177,181,176,204,174,297,168,284,282]} 1. d4 {[%emt 0:00:08]} Nf6 {[%emt 0:08:43]} 2. c4 {[%emt 0:00:09]} e6 {[%emt 0:00:03]} 3. Nf3 {[%emt 0:00:13]} d5 {[%emt 0:00:04]} 4. Nc3 {[%emt 0:00:18]} Bb4 {[%emt 0:00:03]} 5. Qb3 {[%emt 0:00:14]} a5 {[%emt 0:14:34]} (5... c5 {feels hotter.} 6. dxc5 Na6 7. a3 Bxc3+ 8. Qxc3 Nxc5 9. Bg5 dxc4 10. Qxc4 Nce4) 6. a3 {[%emt 0:02:18] D38: Queen's Gambit Declined: Ragozin Defence (4 Nf3 Bb4).} a4 {[%emt 0:04:53]} 7. Qc2 {[%emt 0:11:04]} ({Much worse is} 7. Qxb4 Nc6 8. Qb5 Ra5 $17) 7... Bxc3+ {[%emt 0:01:48] [#]} 8. bxc3 $146 {[%emt 0:08:22] The position is equal.} ({Predecessor:} 8. Qxc3 Ne4 9. Qc2 c5 10. e3 cxd4 11. cxd5 exd5 12. Nxd4 O-O 13. Bd3 Nc6 14. O-O Nxd4 15. exd4 {½-½ (42) Davtyan,A (2461)-Gharibyan,M (2433) Jermuk 2020}) 8... h6 {[%emt 0:09:34]} 9. cxd5 {[%emt 0:10:16]} exd5 {[%emt 0:00:25]} 10. Bf4 {[%emt 0:00:11]} O-O {[%emt 0:12:52][%cal Oc7c5]} 11. e3 {[%emt 0:00:43]} Be6 {[%emt 0:02:05]} 12. Bd3 {[%emt 0:07:59]} Nbd7 {[%emt 0:04:35]} 13. h3 {[%emt 0:08:13]} c5 {[%emt 0:00:05]} 14. Qb2 {[%emt 0:05:01]} Qa5 {[%emt 0:00:39]} 15. O-O {[%emt 0:02:09]} Rfc8 {[%emt 0:04:06]} 16. Rab1 {[%emt 0:03:15]} cxd4 {[%emt 0:02:55]} 17. cxd4 {[%emt 0:00:40]} Rc3 {[%emt 0:00:44]} 18. Rfd1 {[%emt 0:02:02]} Rb3 {[%emt 0:07:32]} 19. Qa2 {[%emt 0:01:46]} Rxd3 {[%emt 0:00:15]} 20. Rxd3 {[%emt 0:00:28]} Bf5 {[%emt 0:00:04]} 21. Rdd1 {[%emt 0:01:37]} Bxb1 {[%emt 0:00:18]} 22. Rxb1 {[%emt 0:00:18]} Qa6 {[%emt 0:04:00]} 23. Ne5 {[%emt 0:05:42]} (23. Qb2 $14 {is more appropriate.}) 23... Rd8 {[%emt 0:06:29]} (23... Nxe5 $1 $11 {keeps the balance.} 24. Bxe5 (24. dxe5 Ne4 $11) 24... Ne4) 24. Qb2 {[%emt 0:05:28] White is more active.} ({Better is} 24. Nxd7 $16 Rxd7 25. Qc2) 24... Nxe5 $14 {[%emt 0:03:48]} 25. Bxe5 {[%emt 0:05:00]} Rd7 {[%emt 0:01:42]} ({Black should try} 25... Ne4 $14) 26. Bxf6 {[%emt 0:08:04]} Qxf6 $18 {[%emt 0:00:02][%mdl 4096] Endgame KQR-KQR} 27. Qb5 $36 {[%emt 0:01:22][%mdl 2048] Black is under strong pressure.} Qf5 {[%emt 0:04:17]} 28. Rc1 {[%emt 0:01:05] Inhibits Rc7.} Rd6 {[%emt 0:00:20]} 29. Qxb7 {[%emt 0:00:53] [#] Hoping for Qb8+.} Kh7 {[%emt 0:00:07]} 30. Qb1 {[%emt 0:01:35]} Kg6 {[%emt 0:00:05]} (30... Qxb1 {was called for.} 31. Rxb1 Rc6) 31. Qxf5+ {[%emt 0:00:52]} Kxf5 {[%emt 0:00:03]} 32. Rc7 {[%emt 0:00:12] Weighted Error Value: White=0.12 (very precise) /Black=0.27 (precise)} 1-0

[Event "Czech Championship 2022"]
[Site "Usti nad Labem"]
[Date "2022.05.21"]
[Round "8.2"]
[White "Navara, David"]
[Black "Plat, Vojtech"]
[Result "1-0"]
[ECO "C41"]
[WhiteElo "2682"]
[BlackElo "2547"]
[Annotator "TA"]
[PlyCount "69"]
[EventDate "2022.05.12"]
[EventType "swiss"]
[EventCountry "CZE"]
[SourceTitle "playchess.com"]
[Source "ChessBase"]
[SourceQuality "1"]
[TimeControl "40/5400+30:1800+30"]

{[%evp 16,69,33,23,29,25,33,18,28,18,28,19,25,13,22,8,20,32,53,38,61,52,119,110,123,125,130,126,131,109,120,102,112,122,126,89,148,122,277,276,260,280,267,275,264,286,282,276,279,270,343,336,899,887,1165,1057]} 1. e4 {[%emt 0:00:02]} d6 {[%emt 0:00:11]} 2. d4 {[%emt 0:00:05]} Nf6 {[%emt 0:00:03]} 3. Nc3 {[%emt 0:00:07]} e5 {[%emt 0:00:03]} 4. Nf3 {[%emt 0:00:08]} Nbd7 {[%emt 0:00:04]} 5. Bc4 {[%emt 0:00:09]} Be7 {[%emt 0:00:03]} 6. O-O {[%emt 0:00:07]} O-O {[%emt 0:00:03]} 7. a4 {[%emt 0:00:06]} a5 {[%emt 0:00:02]} 8. Re1 {[%emt 0:00:25]} c6 {[%emt 0:00:03] 8...b6 is not played anymore.} 9. h3 {[%emt 0:00:26]} Nb6 {[%emt 0:00:03] The main line 9...Nb6 scores better than 9...exd4. C41: Philidor Defence.} (9... exd4 10. Nxd4 Nc5 11. Bf4 Be6 12. Bf1 Re8 13. Qf3 Qb6 14. Rad1 Rad8 15. b3 Qb4 16. e5 Nd5 17. Nxe6 fxe6 18. exd6 Nxc3 19. dxe7 Rxd1 20. Rxd1 N5e4 21. Rd7 Nd5 22. Rd8 Nef6 23. Bd6 {1-0 (23) Navara,D (2726)-Plat,V (2496) Prague 2016}) 10. Bf1 {[%emt 0:00:11]} exd4 {[%emt 0:00:04]} 11. Nxd4 {[%emt 0:00:11]} d5 {[%emt 0:00:02] The position is equal.} 12. e5 {[%emt 0:00:18]} Ne8 {[%emt 0:00:01]} 13. Nce2 {[%emt 0:00:31] was the old line (13.Qf3).} g6 {[%emt 0:00:03]} 14. b3 $5 {[%emt 0:00:32][%mdl 4] Exploring less charted territory.} Ng7 {[%emt 0:00:24]} 15. Nf4 {[%emt 0:00:38]} Bb4 {[%emt 0:06:22]} 16. Bd2 {[%emt 0:01:13] Inhibits Bc3.} Bxd2 {[%emt 0:01:58]} 17. Qxd2 {[%emt 0:00:21]} Qe7 {[%emt 0:01:41]} 18. Qe3 {[%emt 0:05:20][%cal Od4c6]} Nd7 {[%emt 0:10:25]} (18... Qc7 $14) 19. c4 $16 {[%emt 0:05:06] [#]} g5 $146 {[%emt 0:06:37] [#]} ({Predecessor:} 19... dxc4 20. Bxc4 Nc5 21. Rad1 Re8 22. Qc3 Nce6 23. Nfxe6 Nxe6 24. Nxe6 Bxe6 25. Bxe6 Qxe6 {½-½ (42) Tissir,M (2359)-Shimanov,A (2594) Dubai 2015}) 20. Nxd5 {[%emt 0:30:31][%mdl 512]} cxd5 {[%emt 0:00:11]} 21. cxd5 {[%emt 0:00:06]} Re8 {[%emt 0:07:21][%cal Re7e5] [#]} 22. Nf3 {[%emt 0:01:13][%mdl 1024] White has strong compensation.} ({Reject} 22. e6 $6 fxe6 23. Nb5 Nf6 $11) 22... h6 {[%emt 0:04:39]} 23. Bb5 {[%emt 0:13:51]} Rd8 {[%emt 0:11:14]} 24. Rac1 {[%emt 0:02:03] Against Qc5} Nf5 {[%emt 0:04:34]} 25. d6 {[%emt 0:09:39]} Qf8 {[%emt 0:11:45]} (25... Qe6 $142 26. Qd3 Nf8) 26. Qe4 {[%emt 0:03:25] White is much more active. The black rooks are badly placed.} Nxd6 {[%emt 0:12:11] This move loses the game for Black.} 27. exd6 $18 {[%emt 0:00:08]} Nf6 {[%emt 0:00:03]} 28. Qe5 {[%emt 0:04:23]} Rxd6 {[%emt 0:03:16]} 29. Red1 {[%emt 0:03:48]} Re6 {[%emt 0:00:03]} 30. Qc5 {[%emt 0:04:17] Qxf8+ is the strong threat.} Re7 {[%emt 0:00:36] [#]} 31. Nxg5 {[%emt 0:01:50][%mdl 512]} Bd7 {[%emt 0:02:07]} (31... hxg5 $2 32. Qxg5+ Kh7 33. Qxf6 $18) 32. Bxd7 {[%emt 0:04:17]} Nxd7 {[%emt 0:02:03]} 33. Qf5 {[%emt 0:00:33][%csl Gg5][%cal Rf5h7]} hxg5 $2 {[%emt 0:00:29]} (33... Qg7 34. Ne4 Qe5) 34. Qxg5+ {[%emt 0:00:12]} Kh8 {[%emt 0:00:03]} 35. Rc4 {[%emt 0:01:03] Weighted Error Value: White=0.05 (flawless) /Black=0.23 (precise)} 1-0